[Event "*** Titled Tuesday Blitz"]
[Site "Chess.com"]
[Date "2020.04.14"]
[Round "8"]
[White "jaskol95"]
[Black "MisiekZielony"]
[Result "0-1"]
[WhiteElo "2388"]
[BlackElo "2218"]
[TimeControl "180+1"]
[EndTime "11:30:15 PDT"]
[Termination "MisiekZielony won by checkmate"]

1. d4 {[%clk 0:02:50.5]} 1... d5 {[%clk 0:02:59.7]} 2. Bf4 {[%clk 0:02:45.3]}
2... c5 {[%clk 0:02:54.3]} 3. e3 {[%clk 0:02:40.5]} 3... Nf6 {[%clk 0:02:48.3]}
4. c3 {[%clk 0:02:37.1]} 4... b6 {[%clk 0:02:38.9]} 5. Nd2 {[%clk 0:02:34]} 5...
g6 {[%clk 0:02:27.5]} 6. Ngf3 {[%clk 0:02:33.8]} 6... Bg7 {[%clk 0:02:26.7]} 7.
h4 {[%clk 0:02:34]} 7... O-O {[%clk 0:02:25.7]} 8. Bd3 {[%clk 0:02:32.3]} 8...
Bf5 {[%clk 0:02:16]} 9. Bxf5 {[%clk 0:02:28.4]} 9... gxf5 {[%clk 0:02:15.8]} 10.
Ne5 {[%clk 0:02:27.3]} 10... e6 {[%clk 0:02:08.2]} 11. h5 {[%clk 0:02:26.2]}
11... Nfd7 {[%clk 0:01:55.1]} 12. h6 {[%clk 0:02:22.7]} 12... Bf6 {[%clk
0:01:27.6]} 13. Qh5 {[%clk 0:02:13.7]} 13... Nxe5 {[%clk 0:01:23.1]} 14. dxe5
{[%clk 0:02:13.3]} 14... Be7 {[%clk 0:01:22.3]} 15. Rh3 {[%clk 0:02:05.3]} 15...
Qe8 {[%clk 0:01:13.1]} 16. Rg3+ {[%clk 0:01:47.3]} 16... Kh8 {[%clk 0:01:12.5]}
17. Bg5 {[%clk 0:01:25.1]} 17... Nd7 {[%clk 0:01:04.7]} 18. Nf3 {[%clk
0:00:52.3]} 18... f6 {[%clk 0:01:03.2]} 19. Qxe8 {[%clk 0:00:52.3]} 19... Raxe8
{[%clk 0:01:02.4]} 20. exf6 {[%clk 0:00:52.1]} 20... Bxf6 {[%clk 0:01:00.7]} 21.
Bxf6+ {[%clk 0:00:52.4]} 21... Rxf6 {[%clk 0:01:00.2]} 22. Ke2 {[%clk
0:00:49.3]} 22... Rxh6 {[%clk 0:00:58.7]} 23. Ng5 {[%clk 0:00:49.5]} 23... Re7
{[%clk 0:00:48.1]} 24. c4 {[%clk 0:00:49]} 24... d4 {[%clk 0:00:39.5]} 25. exd4
{[%clk 0:00:48.9]} 25... cxd4 {[%clk 0:00:39.6]} 26. f4 {[%clk 0:00:48]} 26...
e5 {[%clk 0:00:37.8]} 27. fxe5 {[%clk 0:00:36.5]} 27... Nxe5 {[%clk 0:00:37.1]}
28. Kd2 {[%clk 0:00:35.8]} 28... Rg6 {[%clk 0:00:30.9]} 29. Rh1 {[%clk
0:00:25.9]} 29... h6 {[%clk 0:00:29]} 30. Rhh3 {[%clk 0:00:19.1]} 30... f4
{[%clk 0:00:27.8]} 31. Ra3 {[%clk 0:00:13.7]} 31... Nxc4+ {[%clk 0:00:27.2]} 32.
Kd3 {[%clk 0:00:13.8]} 32... Nxa3 {[%clk 0:00:27.1]} 33. Nf3 {[%clk 0:00:14.2]}
33... Nb5 {[%clk 0:00:25.2]} 34. a4 {[%clk 0:00:13.8]} 34... Nc7 {[%clk
0:00:24.9]} 35. Kxd4 {[%clk 0:00:14]} 35... Ne6+ {[%clk 0:00:24.3]} 36. Kd5
{[%clk 0:00:12.9]} 36... Ng5 {[%clk 0:00:24.4]} 37. Rh5 {[%clk 0:00:11.5]} 37...
Nxf3 {[%clk 0:00:22.4]} 38. gxf3 {[%clk 0:00:12]} 38... Rg5+ {[%clk 0:00:22.3]}
39. Kd6 {[%clk 0:00:12.4]} 39... Rxh5 {[%clk 0:00:22.1]} 40. Kxe7 {[%clk
0:00:13.3]} 40... Rg5 {[%clk 0:00:21.4]} 41. b4 {[%clk 0:00:13.1]} 41... h5
{[%clk 0:00:21.2]} 42. Kd7 {[%clk 0:00:13.6]} 42... h4 {[%clk 0:00:21.2]} 43.
Kc7 {[%clk 0:00:14.5]} 43... h3 {[%clk 0:00:21.3]} 44. Kb7 {[%clk 0:00:15]}
44... Rg7+ {[%clk 0:00:21.2]} 45. Ka6 {[%clk 0:00:15]} 45... h2 {[%clk
0:00:20.9]} 46. a5 {[%clk 0:00:15.1]} 46... bxa5 {[%clk 0:00:20.9]} 47. bxa5
{[%clk 0:00:14.7]} 47... h1=Q {[%clk 0:00:21]} 48. Kb5 {[%clk 0:00:15]} 48...
Qxf3 {[%clk 0:00:20.7]} 49. Ka6 {[%clk 0:00:15.2]} 49... Qc6# {[%clk 0:00:20.1]}
0-1

[Event "*** Titled Tuesday Blitz"]
[Site "Chess.com"]
[Date "2020.04.14"]
[Round "8"]
[White "Vuk2000"]
[Black "Olga_Girya"]
[Result "1-0"]
[WhiteElo "2618"]
[BlackElo "2474"]
[TimeControl "180+1"]
[EndTime "11:30:16 PDT"]
[Termination "Vuk2000 won on time"]

1. d4 {[%clk 0:03:00.9]} 1... d5 {[%clk 0:02:59]} 2. Bf4 {[%clk 0:03:01.1]} 2...
c5 {[%clk 0:02:58.1]} 3. e3 {[%clk 0:03:01.1]} 3... cxd4 {[%clk 0:02:58.4]} 4.
exd4 {[%clk 0:03:01]} 4... Nc6 {[%clk 0:02:59]} 5. c3 {[%clk 0:03:01.3]} 5...
Bf5 {[%clk 0:02:58.7]} 6. Nf3 {[%clk 0:03:00.5]} 6... e6 {[%clk 0:02:49.3]} 7.
Nbd2 {[%clk 0:02:54.8]} 7... Bd6 {[%clk 0:02:48.3]} 8. Bg3 {[%clk 0:02:55.1]}
8... Nge7 {[%clk 0:02:44.8]} 9. Nh4 {[%clk 0:02:54.6]} 9... O-O {[%clk 0:02:43]}
10. Nxf5 {[%clk 0:02:54.2]} 10... Nxf5 {[%clk 0:02:43]} 11. Bd3 {[%clk
0:02:54.1]} 11... Nxg3 {[%clk 0:02:32.8]} 12. hxg3 {[%clk 0:02:53.7]} 12... h6
{[%clk 0:02:33.1]} 13. Nf3 {[%clk 0:02:51]} 13... Re8 {[%clk 0:02:31.7]} 14. O-O
{[%clk 0:02:39.8]} 14... Rb8 {[%clk 0:02:30.1]} 15. Bb5 {[%clk 0:02:35.6]} 15...
Qc7 {[%clk 0:02:28.9]} 16. Qa4 {[%clk 0:02:34.9]} 16... Rec8 {[%clk 0:02:16]}
17. b4 {[%clk 0:02:03.6]} 17... a6 {[%clk 0:02:12.4]} 18. Bd3 {[%clk 0:02:03]}
18... Ne7 {[%clk 0:01:45.9]} 19. Rac1 {[%clk 0:01:59.1]} 19... Qd8 {[%clk
0:01:46.4]} 20. Nd2 {[%clk 0:01:45.4]} 20... Rc7 {[%clk 0:01:38.8]} 21. Rc2
{[%clk 0:01:36.5]} 21... Rbc8 {[%clk 0:01:38.1]} 22. Rfc1 {[%clk 0:01:36.7]}
22... Qd7 {[%clk 0:01:32.2]} 23. Qb3 {[%clk 0:01:32]} 23... Nc6 {[%clk
0:01:21.4]} 24. a4 {[%clk 0:01:09.4]} 24... Qe7 {[%clk 0:01:18.3]} 25. Nf3
{[%clk 0:00:59.7]} 25... Qf6 {[%clk 0:01:08.6]} 26. Re1 {[%clk 0:00:52.9]} 26...
Rd8 {[%clk 0:00:46.9]} 27. Re3 {[%clk 0:00:50.5]} 27... Rdc8 {[%clk 0:00:44.4]}
28. Rce2 {[%clk 0:00:47.7]} 28... Ne7 {[%clk 0:00:42.3]} 29. Bb1 {[%clk
0:00:44.8]} 29... Nf5 {[%clk 0:00:42.1]} 30. Rd3 {[%clk 0:00:39.3]} 30... h5
{[%clk 0:00:32.6]} 31. Qb2 {[%clk 0:00:25.5]} 31... g6 {[%clk 0:00:32.3]} 32.
Qd2 {[%clk 0:00:23.1]} 32... Kg7 {[%clk 0:00:26.5]} 33. Ng5 {[%clk 0:00:22.9]}
33... Rxc3 {[%clk 0:00:18]} 34. Rxc3 {[%clk 0:00:17.8]} 34... Bxb4 {[%clk
0:00:18]} 35. Rxc8 {[%clk 0:00:18]} 35... Bxd2 {[%clk 0:00:17.9]} 36. Nf3 {[%clk
0:00:15.8]} 36... Ba5 {[%clk 0:00:10.7]} 37. Bxf5 {[%clk 0:00:15.2]} 37... Qxf5
{[%clk 0:00:10.5]} 38. Rcc2 {[%clk 0:00:15]} 38... b5 {[%clk 0:00:08.3]} 39.
axb5 {[%clk 0:00:15.3]} 39... axb5 {[%clk 0:00:08.5]} 40. Ra2 {[%clk 0:00:15.5]}
40... Bb6 {[%clk 0:00:08.5]} 41. Ra6 {[%clk 0:00:15.1]} 41... Qb1+ {[%clk
0:00:07.4]} 42. Kh2 {[%clk 0:00:15.4]} 42... Bc7 {[%clk 0:00:05.5]} 43. Ra7
{[%clk 0:00:15.8]} 43... Bd6 {[%clk 0:00:02.2]} 44. Rd7 {[%clk 0:00:15.4]} 44...
Bb4 {[%clk 0:00:01.2]} 45. Ng5 {[%clk 0:00:11.9]} 45... Qf1 {[%clk 0:00:01.1]}
46. Rb2 {[%clk 0:00:10]} 1-0

[Event "*** Titled Tuesday Blitz"]
[Site "Chess.com"]
[Date "2020.04.14"]
[Round "8"]
[White "wnstop"]
[Black "Embrujada"]
[Result "0-1"]
[WhiteElo "2561"]
[BlackElo "2422"]
[TimeControl "180+1"]
[EndTime "11:30:17 PDT"]
[Termination "Embrujada won by resignation"]

1. e4 {[%clk 0:02:59.9]} 1... c6 {[%clk 0:02:59.8]} 2. d4 {[%clk 0:02:59.9]}
2... d5 {[%clk 0:03:00.4]} 3. Nd2 {[%clk 0:03:00.4]} 3... dxe4 {[%clk
0:03:00.2]} 4. Nxe4 {[%clk 0:03:01.3]} 4... Bf5 {[%clk 0:03:00.5]} 5. Ng3 {[%clk
0:03:01.5]} 5... Bg6 {[%clk 0:03:01.1]} 6. Nh3 {[%clk 0:03:01.8]} 6... Nf6
{[%clk 0:02:58.1]} 7. c3 {[%clk 0:03:01.3]} 7... e6 {[%clk 0:02:55.6]} 8. Nf4
{[%clk 0:03:01.1]} 8... Bd6 {[%clk 0:02:56.1]} 9. h4 {[%clk 0:03:00.5]} 9... Qc7
{[%clk 0:02:49.7]} 10. Qf3 {[%clk 0:02:59.7]} 10... Nbd7 {[%clk 0:02:44.3]} 11.
h5 {[%clk 0:02:59.6]} 11... Bc2 {[%clk 0:02:41.8]} 12. h6 {[%clk 0:02:56.9]}
12... g5 {[%clk 0:02:38.5]} 13. Nfh5 {[%clk 0:02:31.5]} 13... Nxh5 {[%clk
0:02:38.1]} 14. Nxh5 {[%clk 0:02:32.4]} 14... O-O-O {[%clk 0:02:38.4]} 15. Bxg5
{[%clk 0:02:28.1]} 15... f6 {[%clk 0:02:31.1]} 16. Be3 {[%clk 0:02:23]} 16... e5
{[%clk 0:02:26.9]} 17. d5 {[%clk 0:01:59.1]} 17... cxd5 {[%clk 0:02:18.2]} 18.
Qxd5 {[%clk 0:01:58.5]} 18... Nc5 {[%clk 0:02:04.7]} 19. Be2 {[%clk 0:01:47.9]}
19... Be4 {[%clk 0:02:00]} 20. Qc4 {[%clk 0:01:40.6]} 20... Bxg2 {[%clk
0:01:23.3]} 21. Rg1 {[%clk 0:01:39.7]} 21... Bh3 {[%clk 0:01:19.2]} 22. b4
{[%clk 0:01:19.8]} 22... Be6 {[%clk 0:01:16.3]} 23. Qh4 {[%clk 0:00:52.3]} 23...
Ne4 {[%clk 0:01:14.9]} 24. Rc1 {[%clk 0:00:39.9]} 24... f5 {[%clk 0:01:14.8]}
25. Ng7 {[%clk 0:00:35.4]} 25... Rhg8 {[%clk 0:01:00]} 26. Kf1 {[%clk
0:00:30.4]} 26... Bd7 {[%clk 0:00:46.5]} 27. f3 {[%clk 0:00:25.3]} 27... f4
{[%clk 0:00:46.5]} 28. Bxa7 {[%clk 0:00:12.6]} 28... Ng3+ {[%clk 0:00:46.2]} 29.
Rxg3 {[%clk 0:00:12.3]} 29... fxg3 {[%clk 0:00:46.5]} 30. Kg2 {[%clk 0:00:05.2]}
30... e4 {[%clk 0:00:36.9]} 31. fxe4 {[%clk 0:00:05.4]} 31... Bc6 {[%clk
0:00:36.7]} 32. Ne6 {[%clk 0:00:05.4]} 32... Be7 {[%clk 0:00:21.7]} 33. Qh3
{[%clk 0:00:02]} 33... Bxe4+ {[%clk 0:00:20.8]} 34. Kg1 {[%clk 0:00:02.4]} 34...
Qd7 {[%clk 0:00:21.1]} 35. Rd1 {[%clk 0:00:02.1]} 35... Qxd1+ {[%clk 0:00:19.8]}
36. Bxd1 {[%clk 0:00:02.6]} 36... Rxd1+ {[%clk 0:00:20.4]} 37. Qf1 {[%clk
0:00:03.5]} 37... Rxf1+ {[%clk 0:00:20.5]} 38. Kxf1 {[%clk 0:00:04.4]} 38... g2+
{[%clk 0:00:20.6]} 39. Kg1 {[%clk 0:00:04.6]} 39... Rg6 {[%clk 0:00:19.2]} 40.
Nc5 {[%clk 0:00:02.4]} 40... Bxc5+ {[%clk 0:00:18.3]} 41. Bxc5 {[%clk
0:00:03.3]} 41... Rf6 {[%clk 0:00:18.2]} 42. Kh2 {[%clk 0:00:02.7]} 42... Rf1
{[%clk 0:00:16.6]} 43. Bd4 {[%clk 0:00:03.6]} 43... Rh1+ {[%clk 0:00:16.7]} 0-1

[Event "*** Titled Tuesday Blitz"]
[Site "Chess.com"]
[Date "2020.04.14"]
[Round "8"]
[White "LordIron"]
[Black "Yeytruyol"]
[Result "1-0"]
[WhiteElo "2246"]
[BlackElo "2390"]
[TimeControl "180+1"]
[EndTime "11:30:17 PDT"]
[Termination "LordIron won by checkmate"]

1. d4 {[%clk 0:03:00.9]} 1... Nf6 {[%clk 0:02:50.4]} 2. Nf3 {[%clk 0:02:57.4]}
2... g6 {[%clk 0:02:51.1]} 3. Nc3 {[%clk 0:02:51.6]} 3... d5 {[%clk 0:02:52]} 4.
Bg5 {[%clk 0:02:50.5]} 4... Bg7 {[%clk 0:02:49.4]} 5. Qd3 {[%clk 0:02:46.2]}
5... c6 {[%clk 0:02:46.9]} 6. Bxf6 {[%clk 0:02:38.7]} 6... Bxf6 {[%clk
0:02:45.2]} 7. e4 {[%clk 0:02:39.3]} 7... dxe4 {[%clk 0:02:41.9]} 8. Nxe4 {[%clk
0:02:40.2]} 8... Bg7 {[%clk 0:02:38.9]} 9. h4 {[%clk 0:02:38.8]} 9... Bf5 {[%clk
0:02:34.2]} 10. h5 {[%clk 0:02:36.3]} 10... Qd5 {[%clk 0:02:30]} 11. Rh4 {[%clk
0:02:19.5]} 11... Bxe4 {[%clk 0:02:21.7]} 12. Rxe4 {[%clk 0:02:17]} 12... Qxh5
{[%clk 0:02:10.7]} 13. O-O-O {[%clk 0:02:16.8]} 13... e6 {[%clk 0:02:04.9]} 14.
Be2 {[%clk 0:01:59.1]} 14... Nd7 {[%clk 0:01:57.2]} 15. Ne5 {[%clk 0:01:56.4]}
15... Nxe5 {[%clk 0:01:46.4]} 16. dxe5 {[%clk 0:01:55.8]} 16... Qh6+ {[%clk
0:01:41.6]} 17. Kb1 {[%clk 0:01:37.6]} 17... O-O {[%clk 0:01:41.9]} 18. Qg3
{[%clk 0:01:21.6]} 18... Rad8 {[%clk 0:01:36.4]} 19. Bd3 {[%clk 0:01:20.9]}
19... Qh5 {[%clk 0:01:29.1]} 20. Rde1 {[%clk 0:01:20.9]} 20... Rd5 {[%clk
0:01:23.5]} 21. a3 {[%clk 0:00:59.5]} 21... Rfd8 {[%clk 0:01:21.8]} 22. Rh4
{[%clk 0:00:55.5]} 22... Rxe5 {[%clk 0:01:11.6]} 23. Rxh5 {[%clk 0:00:53.3]}
23... Rxe1+ {[%clk 0:01:08.3]} 24. Ka2 {[%clk 0:00:53.3]} 24... gxh5 {[%clk
0:01:07.8]} 25. Qg5 {[%clk 0:00:41.4]} 25... Rd5 {[%clk 0:00:52.6]} 26. Qe7
{[%clk 0:00:36.6]} 26... b5 {[%clk 0:00:42]} 27. Qxa7 {[%clk 0:00:30.1]} 27...
Be5 {[%clk 0:00:36]} 28. Qa8+ {[%clk 0:00:26.6]} 28... Kg7 {[%clk 0:00:32.9]}
29. Qxc6 {[%clk 0:00:27.2]} 29... Bf6 {[%clk 0:00:25.7]} 30. Qc7 {[%clk
0:00:22.5]} 30... h4 {[%clk 0:00:26.2]} 31. Qf4 {[%clk 0:00:20.9]} 31... h3
{[%clk 0:00:25.6]} 32. Qg4+ {[%clk 0:00:20.4]} 32... Rg5 {[%clk 0:00:26]} 33.
Qxh3 {[%clk 0:00:21]} 33... Rg1 {[%clk 0:00:25.7]} 34. Qxh7+ {[%clk 0:00:20.6]}
34... Kf8 {[%clk 0:00:25.4]} 35. Qh6+ {[%clk 0:00:20.9]} 35... Ke7 {[%clk
0:00:26.3]} 36. g3 {[%clk 0:00:20.4]} 36... Rg2 {[%clk 0:00:25.8]} 37. Qh4
{[%clk 0:00:09.4]} 37... Rxf2 {[%clk 0:00:25.5]} 38. Qb4+ {[%clk 0:00:09.7]}
38... Ke8 {[%clk 0:00:23.6]} 39. Bxb5+ {[%clk 0:00:10.2]} 39... Rxb5 {[%clk
0:00:20.6]} 40. Qxb5+ {[%clk 0:00:11.1]} 40... Ke7 {[%clk 0:00:21.2]} 41. Qc5+
{[%clk 0:00:10.8]} 41... Ke8 {[%clk 0:00:20.6]} 42. Qxf2 {[%clk 0:00:11.7]}
42... Ke7 {[%clk 0:00:21.3]} 43. g4 {[%clk 0:00:11.8]} 43... Be5 {[%clk
0:00:22]} 44. Qf3 {[%clk 0:00:12.4]} 44... Bd6 {[%clk 0:00:22.6]} 45. Qe4 {[%clk
0:00:13]} 45... f5 {[%clk 0:00:23.2]} 46. gxf5 {[%clk 0:00:13.3]} 46... Kd7
{[%clk 0:00:22.4]} 47. Qxe6+ {[%clk 0:00:12.9]} 47... Kc6 {[%clk 0:00:23.3]} 48.
f6 {[%clk 0:00:13.7]} 48... Kc5 {[%clk 0:00:23.5]} 49. Qxd6+ {[%clk 0:00:14.1]}
49... Kxd6 {[%clk 0:00:23.4]} 50. Kb3 {[%clk 0:00:15]} 50... Ke6 {[%clk
0:00:23.8]} 51. Kc4 {[%clk 0:00:15.9]} 51... Kxf6 {[%clk 0:00:24.3]} 52. b4
{[%clk 0:00:16.8]} 52... Ke7 {[%clk 0:00:25.1]} 53. Kc5 {[%clk 0:00:17.7]} 53...
Kd7 {[%clk 0:00:26]} 54. b5 {[%clk 0:00:18.5]} 54... Kc8 {[%clk 0:00:26.7]} 55.
a4 {[%clk 0:00:19.4]} 55... Kb8 {[%clk 0:00:27.5]} 56. a5 {[%clk 0:00:19.9]}
56... Ka8 {[%clk 0:00:28.4]} 57. c4 {[%clk 0:00:20.4]} 57... Kb8 {[%clk
0:00:29.3]} 58. b6 {[%clk 0:00:20.8]} 58... Ka8 {[%clk 0:00:30.2]} 59. Kb5
{[%clk 0:00:21.2]} 59... Kb8 {[%clk 0:00:31.1]} 60. a6 {[%clk 0:00:21.8]} 60...
Ka8 {[%clk 0:00:32]} 61. c5 {[%clk 0:00:22.3]} 61... Kb8 {[%clk 0:00:32.9]} 62.
c6 {[%clk 0:00:22.7]} 62... Ka8 {[%clk 0:00:33.8]} 63. Kc5 {[%clk 0:00:21.9]}
63... Kb8 {[%clk 0:00:34.7]} 64. Kd6 {[%clk 0:00:22]} 64... Kc8 {[%clk
0:00:35.6]} 65. a7 {[%clk 0:00:20.2]} 65... Kd8 {[%clk 0:00:35.1]} 66. a8=R#
{[%clk 0:00:18.7]} 1-0

[Event "*** Titled Tuesday Blitz"]
[Site "Chess.com"]
[Date "2020.04.14"]
[Round "8"]
[White "Y0ung_Capablanca"]
[Black "sergoy"]
[Result "0-1"]
[WhiteElo "2714"]
[BlackElo "2901"]
[TimeControl "180+1"]
[EndTime "11:30:18 PDT"]
[Termination "sergoy won by resignation"]

1. e4 {[%clk 0:03:00.9]} 1... c5 {[%clk 0:03:00]} 2. Nf3 {[%clk 0:02:59.9]} 2...
d6 {[%clk 0:03:00.3]} 3. Bb5+ {[%clk 0:02:59.7]} 3... Nd7 {[%clk 0:02:59.9]} 4.
O-O {[%clk 0:02:59.4]} 4... a6 {[%clk 0:02:58.7]} 5. Bd3 {[%clk 0:02:59.5]} 5...
Ngf6 {[%clk 0:02:56.9]} 6. Re1 {[%clk 0:02:59.8]} 6... e6 {[%clk 0:02:52.7]} 7.
a4 {[%clk 0:02:59.4]} 7... b6 {[%clk 0:02:47.9]} 8. c3 {[%clk 0:02:59.6]} 8...
Bb7 {[%clk 0:02:47.9]} 9. Bc2 {[%clk 0:02:59.3]} 9... Be7 {[%clk 0:02:44.5]} 10.
d4 {[%clk 0:02:57.2]} 10... O-O {[%clk 0:02:39.9]} 11. Nbd2 {[%clk 0:02:52.2]}
11... b5 {[%clk 0:02:18.4]} 12. b3 {[%clk 0:02:40.7]} 12... e5 {[%clk
0:02:06.5]} 13. d5 {[%clk 0:02:40]} 13... Nh5 {[%clk 0:02:05.5]} 14. Nf1 {[%clk
0:02:34.6]} 14... g6 {[%clk 0:02:04.6]} 15. Ng3 {[%clk 0:02:27]} 15... Ng7
{[%clk 0:02:03.5]} 16. Bh6 {[%clk 0:02:19.5]} 16... Nf6 {[%clk 0:02:02.8]} 17.
h3 {[%clk 0:02:06.9]} 17... Re8 {[%clk 0:02:00.8]} 18. Qe2 {[%clk 0:02:04.4]}
18... b4 {[%clk 0:01:33.9]} 19. cxb4 {[%clk 0:01:40.4]} 19... cxb4 {[%clk
0:01:34.8]} 20. Rec1 {[%clk 0:01:40.8]} 20... Nd7 {[%clk 0:01:18.6]} 21. Be3
{[%clk 0:01:38.8]} 21... Rf8 {[%clk 0:01:13.7]} 22. Nd2 {[%clk 0:01:22]} 22...
Bg5 {[%clk 0:01:06.7]} 23. Bxg5 {[%clk 0:01:21.1]} 23... Qxg5 {[%clk 0:01:07.6]}
24. Nc4 {[%clk 0:01:21.2]} 24... Qe7 {[%clk 0:01:06.4]} 25. Na5 {[%clk
0:01:15.7]} 25... Nc5 {[%clk 0:01:05.6]} 26. Qd2 {[%clk 0:01:13.9]} 26... Rab8
{[%clk 0:01:01.8]} 27. Bd1 {[%clk 0:01:13]} 27... f5 {[%clk 0:00:57.4]} 28. Rc4
{[%clk 0:01:06]} 28... Qc7 {[%clk 0:00:45.2]} 29. Nxb7 {[%clk 0:01:00.8]} 29...
Qxb7 {[%clk 0:00:46.1]} 30. Rac1 {[%clk 0:00:55.4]} 30... Qb6 {[%clk 0:00:42.1]}
31. exf5 {[%clk 0:00:49.9]} 31... Nxf5 {[%clk 0:00:35.2]} 32. Nxf5 {[%clk
0:00:48.9]} 32... Rxf5 {[%clk 0:00:36.1]} 33. Bg4 {[%clk 0:00:49.3]} 33... Rf6
{[%clk 0:00:35.1]} 34. Qe3 {[%clk 0:00:46.4]} 34... Rbf8 {[%clk 0:00:32.6]} 35.
Be6+ {[%clk 0:00:41.5]} 35... Kg7 {[%clk 0:00:31.6]} 36. R1c2 {[%clk 0:00:28.7]}
36... a5 {[%clk 0:00:28.4]} 37. Rxc5 {[%clk 0:00:20.6]} 37... dxc5 {[%clk
0:00:28.3]} 38. Qxe5 {[%clk 0:00:21.2]} 38... c4 {[%clk 0:00:27.7]} 39. bxc4
{[%clk 0:00:21.2]} 39... Qc5 {[%clk 0:00:15.8]} 40. g4 {[%clk 0:00:11.7]} 40...
h6 {[%clk 0:00:13.5]} 41. h4 {[%clk 0:00:11.9]} 41... Kh7 {[%clk 0:00:11.6]} 42.
Bf5 {[%clk 0:00:05.5]} 42... gxf5 {[%clk 0:00:11.2]} 43. g5 {[%clk 0:00:06]}
43... Rg6 {[%clk 0:00:10.6]} 44. Kh2 {[%clk 0:00:02.4]} 44... Qd6 {[%clk
0:00:10.5]} 45. Qxd6 {[%clk 0:00:02]} 45... Rxd6 {[%clk 0:00:11.4]} 46. Rd2
{[%clk 0:00:01.9]} 46... Rc8 {[%clk 0:00:10.6]} 0-1

[Event "*** Titled Tuesday Blitz"]
[Site "Chess.com"]
[Date "2020.04.14"]
[Round "8"]
[White "Chessialist"]
[Black "Jumbo"]
[Result "0-1"]
[WhiteElo "2647"]
[BlackElo "2852"]
[TimeControl "180+1"]
[EndTime "11:30:19 PDT"]
[Termination "Jumbo won by resignation"]

1. e4 {[%clk 0:03:00.9]} 1... g6 {[%clk 0:03:00.9]} 2. h4 {[%clk 0:03:00.2]}
2... h5 {[%clk 0:03:00.2]} 3. Nh3 {[%clk 0:02:59.7]} 3... Bg7 {[%clk 0:02:48.9]}
4. Bc4 {[%clk 0:02:58.2]} 4... c6 {[%clk 0:02:46.7]} 5. Nc3 {[%clk 0:02:57.5]}
5... d6 {[%clk 0:02:39]} 6. Ng5 {[%clk 0:02:57.4]} 6... Nh6 {[%clk 0:02:39.5]}
7. d3 {[%clk 0:02:54.9]} 7... b5 {[%clk 0:02:24.1]} 8. Bb3 {[%clk 0:02:54.8]}
8... a5 {[%clk 0:02:14.3]} 9. a4 {[%clk 0:02:54.9]} 9... b4 {[%clk 0:02:14.2]}
10. Ne2 {[%clk 0:02:55.1]} 10... Na6 {[%clk 0:02:08.4]} 11. Nf4 {[%clk
0:02:54.8]} 11... Nc5 {[%clk 0:02:07.8]} 12. Bc4 {[%clk 0:02:53.6]} 12... e5
{[%clk 0:02:07.6]} 13. Bxf7+ {[%clk 0:02:48.1]} 13... Nxf7 {[%clk 0:02:01.6]}
14. Nxg6 {[%clk 0:02:49]} 14... Bg4 {[%clk 0:01:22.7]} 15. f3 {[%clk 0:02:38.6]}
15... Bd7 {[%clk 0:01:15.7]} 16. Nxf7 {[%clk 0:02:35.4]} 16... Kxf7 {[%clk
0:01:16.6]} 17. Nxh8+ {[%clk 0:02:27.7]} 17... Qxh8 {[%clk 0:01:17.5]} 18. Be3
{[%clk 0:02:27.3]} 18... Ne6 {[%clk 0:01:17.7]} 19. Qd2 {[%clk 0:02:20.6]} 19...
c5 {[%clk 0:01:17.4]} 20. b3 {[%clk 0:02:17.5]} 20... Ke7 {[%clk 0:01:14]} 21.
O-O-O {[%clk 0:02:17.3]} 21... Rf8 {[%clk 0:01:11.4]} 22. Rdf1 {[%clk
0:02:17.3]} 22... Nd4 {[%clk 0:01:00.6]} 23. Kb1 {[%clk 0:02:12.5]} 23... Be6
{[%clk 0:01:00.4]} 24. f4 {[%clk 0:02:05.1]} 24... exf4 {[%clk 0:00:55.6]} 25.
Rxf4 {[%clk 0:02:04]} 25... Rxf4 {[%clk 0:00:52]} 26. Bxf4 {[%clk 0:02:04.9]}
26... Kd7 {[%clk 0:00:52.1]} 27. Rf1 {[%clk 0:02:00]} 27... Nc6 {[%clk
0:00:48.7]} 28. Qf2 {[%clk 0:01:45.7]} 28... Qg8 {[%clk 0:00:22.4]} 29. Ka2
{[%clk 0:01:22.5]} 29... Nd4 {[%clk 0:00:19.3]} 30. Rb1 {[%clk 0:01:08.4]} 30...
Bg4 {[%clk 0:00:19.4]} 31. Bc1 {[%clk 0:00:42.1]} 31... Ne2 {[%clk 0:00:16.9]}
32. Bb2 {[%clk 0:00:42.5]} 32... Bxb2 {[%clk 0:00:14.2]} 33. Rxb2 {[%clk
0:00:42]} 33... Qg7 {[%clk 0:00:12]} 34. c4 {[%clk 0:00:36.3]} 34... Nc3+ {[%clk
0:00:10.9]} 35. Ka1 {[%clk 0:00:36.3]} 35... Kc6 {[%clk 0:00:10.3]} 36. d4
{[%clk 0:00:19.9]} 36... Qxd4 {[%clk 0:00:09.2]} 37. Qxd4 {[%clk 0:00:18.2]}
37... cxd4 {[%clk 0:00:10.1]} 38. Rd2 {[%clk 0:00:16.5]} 38... Kc5 {[%clk
0:00:10.5]} 39. Kb2 {[%clk 0:00:17.1]} 39... Nxe4 {[%clk 0:00:10.2]} 40. Rd3
{[%clk 0:00:17.8]} 40... Be2 {[%clk 0:00:06.3]} 41. Rh3 {[%clk 0:00:15.4]} 41...
d3 {[%clk 0:00:06.8]} 42. Re3 {[%clk 0:00:09.1]} 42... Kd4 {[%clk 0:00:07.2]}
0-1